bitfinex/quotes_ETHUSD_20260119
["timestamp","ask_amount","ask_price","bid_price","bid_amount"]
[1768780803229,0.98848873,3283.3,3281.2,0.002]
[1768780803426,0.00081497,3283.4,3281.2,0.002]
[1768780803427,0.98848873,3281.8,3281.2,0.002]
[1768780803627,0.98848873,3281.8,3280.1,0.00081341]
[1768780803827,0.98848873,3281.2,3280.1,0.00081341]
[1768780804464,0.98848873,3281.2,3278.9,0.002]
[1768780804647,0.98848873,3280.4,3278.9,0.002]
[1768780805162,0.00081341,3280.5,3279.1,0.00681242]
[1768780805364,0.00081341,3280.5,3279.7,24.199172]
[1768780805661,0.00081226,3281.3,3279.7,15.103009]
[1768780805893,0.98848873,3281.7,3280.9,0.00081234]
[1768780806030,0.0008139,3281.9,3280.9,0.00081234]
[1768780806360,0.98848873,3282.7,3281.5,0.00081398]
[1768780806525,3.0464384,3283.4,3281.6,25.995458]
[1768780806730,3.0464384,3283.4,3281.8,18.772231]
[1768780806731,0.98848873,3283.2,3281.8,18.772231]
[1768780806952,0.98848873,3283.2,3281.8,2.56]
[1768780807171,0.00081497,3283.4,3281.5,0.00081398]
[1768780807172,0.00081497,3283.4,3282.0,0.91549173]
[1768780807337,3.04417012,3285.0,3281.9,30.0]
[1768780807338,0.98848873,3285.0,3283.0,0.00081505]
[1768780807539,3.0445792,3284.6,3283.1,30.0]
[1768780807790,6.0884654,3284.9,3283.2,3.0581975]
[1768780807970,0.98848873,3284.6,3283.3,3.0457162]
[1768780808139,0.98848873,3284.6,3283.3,6.0914324]
[1768780808342,0.98948873,3284.0,3283.0,3.04680653]
[1768780808947,0.98948873,3284.0,3283.0,0.00081505]
[1768780809169,0.00081505,3283.4,3281.5,0.00081398]
[1768780809388,0.98848873,3283.3,3281.5,0.00081398]
[1768780809541,0.98848873,3283.3,3281.8,3.04703982]
[1768780809736,0.98848873,3283.3,3282.1,0.002]
[1768780809737,6.09161792,3283.2,3282.1,0.002]
[1768780809954,0.98848873,3283.1,3282.1,0.002]
[1768780810973,0.00081505,3283.4,3282.2,6.444371]
[1768780811375,0.98930378,3283.4,3282.1,0.002]
[1768780811695,0.98848873,3283.3,3282.1,0.002]
[1768780811848,4.03430975,3283.2,3282.1,0.002]
[1768780812047,0.98848873,3283.1,3282.1,0.002]
[1768780812445,0.00081505,3283.4,3282.1,0.002]
[1768780812446,0.00081505,3283.4,3282.2,3.937335]
[1768780812951,0.98848873,3283.3,3282.1,0.002]
[1768780814544,0.98848873,3283.2,3282.1,0.002]
[1768780814757,3.04572958,3283.3,3282.1,0.002]
[1768780814758,0.98848873,3283.0,3282.1,0.002]
[1768780814958,0.98848873,3283.0,3281.8,0.002]
[1768780815386,0.98848873,3283.0,3281.5,0.00081398]
[1768780815564,0.98848873,3283.0,3281.8,3.04704951]
[1768780815768,0.98848873,3283.0,3281.5,3.04818942]
[1768780815979,0.98848873,3283.0,3281.5,0.00081398]
[1768780816181,0.40342183,3283.1,3281.0,3.04784725]
[1768780816182,0.98848873,3282.8,3281.0,3.04784725]
[1768780816381,0.98848873,3282.8,3280.1,3.04943369]
[1768780816382,0.98848873,3281.2,3280.1,0.00081349]
[1768780816583,0.00081234,3281.3,3279.0,17.20298108]
[1768780816584,0.98930222,3280.5,3279.0,17.20298108]
[1768780816789,0.98930222,3280.5,3279.1,6.56417967]
[1768780816989,0.98930222,3280.5,3279.1,6.09917967]
[1768780817302,0.98930222,3280.5,3279.0,3.04969805]
[1768780817509,0.98930222,3280.5,3279.0,8e-08]
[1768780817796,0.98848873,3279.3,3278.6,0.00280998]
[1768780817969,0.0008126,3279.4,3278.6,0.00280998]
[1768780818581,0.98930133,3279.4,3278.6,0.00280998]
[1768780818802,0.00080998,3279.0,3278.1,0.002]
[1768780819117,0.98929871,3279.0,3277.5,1.16293422]
[1768780819311,0.0008126,3279.4,3278.3,3.05036146]
[1768780819467,0.0008126,3279.4,3277.7,3.05085606]
[1768780819468,0.00081006,3279.0,3278.4,0.61008151]
[1768780819681,0.00081006,3279.0,3277.5,1.16293422]
[1768780819682,0.98929879,3279.0,3277.5,1.16293422]
[1768780819873,0.98929879,3279.0,3276.1,3.05237857]
[1768780819874,0.00081097,3277.7,3276.5,0.465]
[1768780820062,0.00081097,3277.7,3275.1,5.73063294]
[1768780820063,0.00081097,3277.7,3275.6,0.93859283]
[1768780820392,0.00081097,3277.7,3276.3,0.91549173]
[1768780820566,0.00081097,3277.7,3276.1,14.748932]
[1768780820764,0.00081097,3277.7,3276.3,9.519254]
[1768780820965,0.9892997,3277.7,3276.2,1.47497405]
[1768780821198,0.9892997,3277.7,3275.7,9.57415634]
[1768780821401,0.00080851,3276.4,3275.8,2.352905]
[1768780821583,0.00080851,3276.4,3275.7,6.52137373]
[1768780821584,0.00080851,3276.4,3275.7,6.05637373]
[1768780821775,0.00080851,3276.4,3275.6,3.07596797]
[1768780822117,0.98929724,3276.4,3274.3,3.05489681]
[1768780822324,3.05301496,3276.4,3274.3,9.16307259]
[1768780822523,0.91469375,3276.3,3274.4,0.03053994]
[1768780822723,0.91469375,3276.3,3274.5,12.817225]
[1768780822924,0.91469375,3276.3,3274.3,9.16307259]
[1768780822925,0.91469375,3276.3,3274.3,6.1089847]
[1768780823231,0.00080892,3274.7,3273.5,3.05480626]
[1768780823443,0.00080892,3274.7,3273.6,0.30548063]
[1768780823615,0.00080892,3274.7,3272.4,1.06667935]
[1768780823616,0.000804,3273.7,3273.1,3.05512115]
[1768780823924,0.000804,3273.7,3271.3,1.37265533]
[1768780824217,3.9694347,3273.6,3271.9,6.11265188]
[1768780824450,0.0008036,3272.5,3271.9,3.05632376]
[1768780824572,6.87517565,3273.6,3271.8,2.95721206]
[1768780824788,0.00080368,3272.5,3271.8,2.80721206]
[1768780825046,0.99306856,3273.5,3271.9,4.658847]
[1768780825320,0.99306856,3273.5,3271.8,11.97647668]
[1768780825321,0.000804,3273.7,3272.4,30.90765533]
[1768780825476,0.000804,3273.7,3272.5,0.90765533]
[1768780825677,0.000804,3273.7,3272.6,14.103505]
[1768780825878,0.000804,3273.7,3272.6,3.792073]
[1768780826113,0.00080892,3274.7,3272.5,0.90765533]
[1768780826114,0.00080892,3274.7,3273.3,0.00080408]
[1768780826510,0.00080408,3273.7,3272.7,6.11116202]
[1768780826727,0.00080408,3273.7,3272.1,0.00080376]
[1768780826897,0.91549783,3273.7,3272.1,0.00080376]
[1768780827495,0.00080408,3273.7,3272.1,0.00080376]
[1768780827820,0.91549783,3273.7,3272.1,0.00080376]
[1768780828035,0.91549783,3273.7,3271.1,0.90765533]
[1768780828319,0.00080376,3272.5,3271.2,6.11394399]
[1768780828479,0.00080376,3272.5,3271.3,0.70215993]
[1768780828675,0.00080376,3272.5,3271.1,3.0570756]
[1768780828878,0.00080376,3272.5,3271.3,0.90765533]
[1768780829093,0.91549783,3273.7,3272.1,0.00080384]
[1768780829377,0.00080408,3273.7,3272.2,23.11437933]
[1768780829585,0.00080408,3273.7,3272.3,2.31151832]
[1768780829801,0.00080408,3273.7,3272.1,0.00080384]
[1768780829802,7.02480053,3273.7,3272.1,0.00080384]
[1768780829999,7.02480053,3273.7,3271.1,6.0941512]
[1768780830000,0.00080384,3272.5,3271.1,6.0941512]
[1768780830277,0.00080384,3272.5,3270.8,6.11468831]
[1768780830492,0.00080384,3272.5,3270.7,0.18604664]
[1768780830493,0.91549759,3272.5,3270.7,0.18604664]
[1768780830687,0.91549759,3272.5,3270.7,3.24349611]
[1768780830902,0.91549759,3272.5,3269.4,4.23485775]
[1768780830903,23.033389,3272.2,3266.5,0.09730281]
[1768780831199,0.00080384,3272.5,3266.0,0.00160681]
[1768780831200,0.0008036,3270.3,3269.0,0.00080695]
[1768780831397,0.0008036,3270.3,3268.3,3.74e-06]
[1768780831398,0.00080695,3269.4,3268.3,3.74e-06]
[1768780831599,0.0008036,3270.3,3269.0,0.00080703]
[1768780831802,0.0008036,3270.3,3269.3,0.90765533]
[1768780831991,0.00080482,3271.0,3270.1,2.27176]
[1768780832189,0.00080482,3271.0,3270.2,9.17375082]
[1768780832408,3.05558101,3272.7,3270.2,9.17375082]
[1768780832409,3.05558101,3272.7,3270.6,0.0008049]
[1768780832724,0.449,3273.1,3270.6,0.0008049]
[1768780832725,0.449,3273.1,3270.7,5.891795]
[1768780832938,0.449,3273.1,3270.6,0.0008049]
[1768780832939,6.11097996,3272.8,3270.6,0.0008049]
[1768780833413,0.90765222,3272.5,3270.6,0.0008049]
[1768780833628,0.00080368,3270.3,3269.1,3.05894023]
[1768780833929,0.00080368,3270.3,3266.6,0.0008032]
[1768780833931,0.00080662,3268.7,3266.6,0.0008032]
[1768780834085,0.00080662,3268.7,3267.3,3.06143723]
[1768780834289,0.00080662,3269.0,3267.6,0.90765533]
[1768780834629,0.00080662,3269.0,3267.3,0.00080613]
[1768780834630,0.0008067,3268.7,3267.3,0.00080613]
[1768780834781,0.0008067,3268.7,3267.5,0.90765533]
[1768780834981,0.0008067,3268.7,3267.7,4.90999333]
[1768780835192,0.0008067,3268.7,3267.7,0.90765533]
[1768780835597,0.0008067,3268.7,3267.3,0.00080613]
[1768780835598,0.00080703,3269.4,3268.6,0.90846203]
[1768780835783,3.05791694,3270.2,3269.0,4.1e-07]
[1768780835989,0.00080678,3268.7,3267.3,0.00080613]
[1768780836185,0.00080678,3268.7,3267.7,6.12051288]
[1768780836520,0.00080678,3268.7,3267.3,0.00080613]
[1768780836925,0.00080678,3268.7,3267.0,0.0008036]
[1768780837080,0.00080613,3267.7,3267.0,0.0008036]
[1768780837279,0.00080678,3268.7,3267.6,3.06027113]
[1768780837618,0.00080678,3269.0,3268.3,0.00080686]
[1768780837826,0.00080711,3269.4,3268.6,0.00080686]
[1768780837988,0.00080686,3269.0,3268.3,0.00080686]
[1768780838514,0.30587206,3270.1,3268.4,0.92794676]
[1768780838703,0.30587206,3270.1,3268.3,0.00080686]
[1768780838704,0.00080368,3270.3,3269.0,0.92875395]
[1768780839105,0.00080368,3270.3,3269.4,0.92794676]
[1768780839624,0.00080368,3270.3,3269.0,0.00080719]
[1768780839625,6.11649582,3270.3,3269.0,0.00080719]
[1768780839796,0.00080719,3269.4,3268.6,0.00080694]
[1768780840119,6.11649582,3270.3,3269.0,0.00080727]
[1768780840120,0.00080368,3270.3,3269.0,0.00080727]
[1768780840338,0.0008049,3271.0,3269.9,0.92875052]
[1768780840626,6.11235239,3272.5,3270.6,0.00080498]
[1768780840820,6.11235239,3272.5,3269.9,0.00080376]
[1768780840821,0.00080498,3271.0,3269.9,0.00080384]
[1768780841122,0.00080384,3270.3,3269.1,3.98689264]
[1768780841325,0.00080384,3270.3,3269.0,4.27e-06]
[1768780841493,0.00080694,3269.0,3268.3,4.27e-06]
[1768780841683,0.00080694,3269.0,3267.5,3.06044376]
[1768780841684,0.00080686,3268.7,3267.5,3.06044376]
[1768780841997,0.00080686,3268.7,3267.4,7.04897756]
[1768780842321,0.00080686,3268.7,3267.0,3.06164147]
[1768780842322,0.00080727,3269.4,3268.7,0.92794676]
[1768780842534,0.00080384,3270.3,3269.0,0.92875411]
[1768780842886,0.00080384,3270.3,3269.3,21.439805]
[1768780843089,0.00080384,3270.3,3269.0,0.00080735]
[1768780843090,0.00080384,3270.3,3269.1,0.92794676]
[1768780843289,0.00080384,3270.3,3269.0,0.00080735]
[1768780844307,0.00080384,3270.3,3268.6,0.00080702]
[1768780844308,0.00080735,3269.4,3268.6,0.00080702]
[1768780845033,0.00080735,3269.4,3268.4,0.92794676]
[1768780845034,0.00080702,3269.0,3268.3,0.00080694]
[1768780845193,0.00080702,3269.0,3265.9,11.51563331]
[1768780845194,0.00080694,3268.7,3266.9,3.98886759]
[1768780845392,0.00080694,3268.7,3268.5,3.05950741]
[1768780845629,0.00080694,3268.7,3267.4,0.92794676]
[1768780845833,0.00080702,3269.0,3267.3,0.00080621]
[1768780845834,0.00080702,3269.0,3268.4,6.11920204]
[1768780846161,0.00080735,3269.4,3268.4,6.11920204]
[1768780846290,0.00080735,3269.4,3268.6,0.0008071]
[1768780846618,0.00080702,3268.7,3267.3,0.92875297]
[1768780847019,0.00080702,3268.7,3267.0,0.0008036]
[1768780847238,0.00080621,3267.7,3267.0,0.0008036]
[1768780847414,0.00080621,3267.7,3265.9,2.80739199]
[1768780847415,0.00080441,3266.4,3265.9,2.80739199]
[1768780847742,0.00080621,3267.7,3266.4,0.92794676]
[1768780847743,0.00160861,3267.7,3266.4,0.92794676]
[1768780848028,0.0008032,3268.3,3266.6,0.92794676]
[1768780848029,0.39308315,3268.3,3266.6,0.92794676]
[1768780848231,0.0008032,3268.3,3267.4,0.92794676]
[1768780848552,0.00161062,3268.7,3267.5,0.92794676]
[1768780848844,0.00080735,3269.4,3267.4,9.18161022]
[1768780848845,0.00080735,3269.4,3268.6,0.92875394]
[1768780849136,6.1181705,3269.4,3268.6,0.00080718]
[1768780849330,0.00080629,3267.7,3267.4,3.06052615]
[1768780849512,0.00080718,3269.0,3268.3,0.00080718]
[1768780849929,0.00080637,3267.7,3267.0,0.00080319]
[1768780850655,0.00080637,3267.7,3266.8,0.92794676]
[1768780850944,0.00080637,3267.7,3266.9,0.92794676]
[1768780851170,0.00161118,3268.7,3266.9,0.92794676]
[1768780851458,0.00161118,3268.7,3266.8,0.70510571]
[1768780851459,0.00161118,3268.7,3267.5,0.92794676]
[1768780851811,0.00161118,3268.7,3267.3,0.00080645]
[1768780852239,0.00161118,3268.7,3265.9,3.08813119]
[1768780852240,0.00080645,3267.7,3266.0,0.00160444]
[1768780852437,0.00080645,3267.7,3266.2,0.93276486]
[1768780852911,0.0008036,3268.3,3267.3,0.00080653]
[1768780853107,0.0008036,3268.3,3266.4,0.86671384]
[1768780853310,0.00080653,3267.7,3266.4,0.81671384]
[1768780853713,0.00080653,3267.7,3266.1,0.30897356]
[1768780853714,0.00080653,3267.7,3265.9,2.80441684]
[1768780853950,0.00080653,3267.7,3265.0,0.345982]
[1768780853951,0.00080449,3266.4,3265.0,0.345982]
[1768780854304,0.00080449,3266.4,3264.0,0.93276486]
[1768780854452,0.00080449,3266.4,3263.6,0.15772652]
[1768780854453,13.818436,3266.1,3263.6,0.15772652]
[1768780854756,0.000802,3266.2,3263.4,0.0008024]
[1768780854757,1.3819238,3266.0,3263.4,0.0008024]
[1768780854914,7.054597,3265.8,3263.4,0.0008024]
[1768780855117,13.642834,3265.7,3263.4,0.0008024]
[1768780855308,0.0008024,3265.8,3263.4,0.0008024]
[1768780855534,0.0008024,3265.8,3264.0,3.0636605]
[1768780855735,0.0008024,3265.8,3263.4,0.0008024]
[1768780856091,0.0008024,3265.8,3264.0,6.12742703]
[1768780856368,0.0008024,3265.8,3263.5,3.06417359]
[1768780856369,0.000802,3266.2,3264.4,0.93276486]
[1768780857012,2.09921,3266.1,3264.1,0.0008028]
[1768780857642,0.000802,3266.2,3263.7,0.0008028]
[1768780857646,19.173535,3265.7,3263.7,0.0008028]
[1768780857821,9.041602,3265.7,3263.7,0.0008028]
[1768780858324,0.0008028,3265.8,3263.7,0.0008028]
[1768780858524,0.0008028,3265.8,3263.9,0.93276486]
[1768780858746,0.05,3265.7,3263.9,0.93276486]
[1768780858924,0.05,3265.7,3263.7,0.0008028]
[1768780858925,3.35091,3265.6,3263.7,0.0008028]
[1768780859140,0.497,3265.7,3263.3,9.1931385]
[1768780859141,0.384791,3265.5,3263.3,9.1931385]
[1768780859320,0.0008028,3265.8,3263.8,0.93276486]
[1768780859519,0.000802,3266.2,3264.6,0.93276486]
[1768780859728,0.000802,3266.2,3264.3,0.002]
[1768780859932,0.000802,3266.2,3264.3,0.93476486]
[1768780860264,0.000802,3266.6,3264.7,0.93276486]
[1768780860484,9.00283,3266.3,3264.5,0.0008024]
[1768780860773,7.453599,3266.1,3264.1,0.0008032]
[1768780860988,0.90116585,3266.2,3264.1,0.0008032]
[1768780861128,2.870211,3266.1,3264.1,0.0008032]
[1768780861430,0.0008024,3266.2,3264.2,0.93276486]
[1768780861757,0.0008024,3266.2,3264.1,0.0008032]
[1768780861758,9.793594,3266.1,3264.1,0.0008032]
[1768780861935,9.793594,3266.1,3263.4,0.0008028]
[1768780861936,0.0008032,3265.4,3263.4,0.0008028]
[1768780863470,3.523838,3265.3,3263.4,0.0008028]
[1768780863668,0.0008032,3265.4,3262.8,0.0008024]
[1768780863669,10.411519,3265.0,3262.8,0.0008024]
[1768780863828,0.9026124,3265.1,3262.6,6.13205854]
[1768780863829,0.0008024,3264.5,3262.6,6.13205854]
[1768780864029,0.0008028,3264.8,3262.8,0.93356766]
[1768780864341,9.18976872,3264.5,3262.8,0.0008028]
[1768780864659,9.18976872,3264.5,3262.1,0.00080482]
[1768780864660,3.06315937,3264.7,3262.1,0.00080482]
[1768780864661,3.06314572,3264.7,3262.1,0.00080482]
[1768780864868,0.0008028,3264.5,3262.7,0.93276486]
[1768780865025,0.0008028,3264.5,3262.5,0.00080482]
[1768780865827,13.657513,3264.4,3262.5,0.00080482]
[1768780866030,0.0008028,3264.5,3262.1,0.00080482]
[1768780866235,0.00080482,3264.2,3262.3,0.93276486]
[1768780866566,0.00080482,3264.2,3262.1,0.00080482]
[1768780866567,0.00080482,3264.2,3262.1,0.93356968]
[1768780866772,0.00080482,3264.2,3262.5,0.93276486]
[1768780866979,0.0008028,3264.5,3262.5,0.93276486]
[1768780866980,0.0008028,3264.5,3262.5,1.01367369]
[1768780867182,0.0008028,3264.5,3262.5,0.00080523]
[1768780868534,0.0008028,3264.5,3262.7,0.93276486]
[1768780868734,0.0008028,3264.5,3262.9,0.93276486]
[1768780869172,0.0008028,3264.5,3262.5,0.00080523]
[1768780870375,0.0008028,3264.5,3262.6,0.93276486]
[1768780870676,0.0008028,3264.5,3262.5,0.00080523]
[1768780871047,0.0008028,3264.5,3262.6,0.30659414]
[1768780871236,0.0008028,3264.5,3262.5,0.00080523]
[1768780871482,13.334753,3264.4,3262.5,0.00080523]
[1768780871686,0.0008028,3264.5,3261.4,2.87362259]
[1768780871687,0.000804,3263.5,3261.4,2.87281736]
[1768780871853,0.000804,3263.5,3262.8,0.002]
[1768780872078,0.000804,3263.5,3261.4,2.87081736]
[1768780872079,8.800976,3263.4,3261.4,2.87081736]
[1768780872260,0.000804,3263.5,3261.4,3.27692259]
[1768780872261,0.880178,3263.3,3261.4,3.27692259]
[1768780872594,0.000804,3263.5,3262.5,0.002]
[1768780872882,0.00080482,3263.8,3262.5,0.002]
[1768780873473,0.00180523,3264.2,3262.5,0.002]
[1768780873838,6.957616,3264.0,3262.5,0.002]
[1768780874037,3.641031,3264.1,3262.1,0.00080523]
[1768780874239,0.00180523,3264.2,3261.4,3.27653223]
[1768780874240,0.00080441,3263.5,3261.4,3.27653223]
[1768780874482,9.19342974,3263.2,3261.4,3.27653223]
[1768780874640,16.573962,3263.1,3261.4,3.27653223]
[1768780874875,16.573962,3263.1,3260.5,0.93356646]
[1768780874876,16.573962,3263.1,3259.6,0.93276486]
[1768780874877,0.128,3263.0,3259.6,0.93276486]
[1768780875071,0.128,3263.0,3259.5,0.0008016]
[1768780875072,0.0008016,3261.5,3259.9,3.06750044]
[1768780875322,0.0008016,3262.2,3260.2,0.000802]
[1768780875465,0.0008016,3262.2,3260.3,0.30681015]
[1768780875792,0.0008016,3262.2,3260.2,0.000802]
[1768780875992,20.220959,3262.1,3260.2,0.000802]
[1768780876205,0.0008016,3262.2,3259.8,0.000802]
[1768780876489,0.000802,3261.9,3259.8,0.93356686]
[1768780876703,0.000802,3261.9,3259.8,0.000802]
[1768780876999,0.0008016,3262.2,3260.3,0.93276486]
[1768780877303,0.0008028,3262.5,3260.2,0.0008024]
[1768780877304,0.0008028,3262.5,3260.7,0.93276486]
[1768780877505,0.0008028,3262.5,3260.9,0.93276486]
[1768780877884,0.0008028,3262.5,3260.5,0.000802]
[1768780878084,0.0008028,3262.5,3260.5,0.93356686]
[1768780878683,0.0008028,3262.5,3260.2,0.0008024]
[1768780878684,0.000802,3262.2,3260.2,0.0008024]
[1768780879003,0.000802,3262.2,3260.8,0.93276486]
[1768780879223,0.000802,3262.2,3260.2,0.0008024]
[1768780879385,0.000802,3262.2,3260.6,14.57901]
[1768780879587,9.19314804,3263.3,3261.0,0.93356726]
[1768780879588,3.06438268,3263.3,3261.0,0.93356726]
[1768780879784,3.06432013,3263.4,3261.7,7.63876]
[1768780880008,0.05,3264.1,3261.8,0.93276486]
[1768780880283,0.00180523,3264.2,3262.0,0.93276486]
[1768780880548,0.00180523,3264.2,3261.3,0.0008016]
[1768780880549,0.00180523,3264.2,3262.2,0.93276486]
[1768780880697,0.00180523,3264.2,3262.3,0.70637847]
[1768780880899,0.00180523,3264.2,3260.4,3.06708949]
[1768780880900,0.9026124,3263.4,3260.4,3.06708949]
[1768780881094,0.9026124,3263.4,3259.8,3.06839885]
[1768780881095,0.0008024,3262.2,3259.8,3.06839885]
[1768780881301,0.0008024,3262.7,3260.8,0.0008036]
[1768780881507,0.0508024,3262.7,3260.8,0.0008036]
[1768780881822,0.0508024,3262.7,3260.2,0.0008024]
[1768780881823,0.0008028,3262.2,3260.2,0.0008024]
[1768780882023,0.0008028,3262.2,3260.4,3.06706247]
[1768780882354,0.0008028,3262.2,3260.9,3.06662852]
[1768780882549,0.0008028,3262.2,3260.3,0.30681404]
[1768780882751,0.0008028,3262.2,3260.3,3.06712747]
[1768780882934,0.0008028,3262.2,3260.3,6.13432987]
[1768780883136,0.0008028,3262.2,3260.2,0.0008024]
[1768780883345,0.0008028,3262.2,3260.2,3.06800941]
[1768780883516,0.0008028,3262.2,3260.3,3.0672024]
[1768780883809,0.0008028,3262.2,3260.4,0.30680048]
[1768780884212,0.0008028,3262.2,3260.2,0.0008024]
[1768780884399,0.0008028,3262.2,3260.9,0.002]
[1768780886826,0.96175185,3262.2,3260.9,0.002]
[1768780887250,0.96175185,3262.2,3259.8,0.000802]
[1768780887251,0.96175185,3262.2,3259.8,3.06720838]
[1768780887413,0.000802,3261.5,3259.8,3.06765787]
[1768780887643,0.000802,3261.5,3258.3,0.0008004]
[1768780887644,3.222,3263.3,3261.5,0.92672423]
[1768780887857,3.06428877,3263.4,3261.4,2.832187]
[1768780888155,0.96094905,3263.4,3261.3,0.000802]
[1768780888672,0.00080482,3263.5,3261.6,9.000028]
[1768780888853,0.00080482,3263.5,3261.9,9.462618]
[1768780889017,0.00080482,3263.5,3261.8,7.491369]
[1768780889220,3.06344704,3264.3,3261.9,6.750675]
[1768780889435,0.96175185,3264.5,3261.9,4.65458]
[1768780889617,0.96175185,3264.5,3261.8,0.00080523]
[1768780889618,0.96094905,3263.7,3262.0,0.80728033]
[1768780889954,6.12867051,3263.8,3261.8,0.00080523]
[1768780889955,0.96094905,3263.5,3261.8,0.00080523]
[1768780890450,3.06472959,3263.8,3261.8,0.00080523]
[1768780890752,0.96175428,3263.8,3261.9,6.86147]
[1768780890966,0.96175428,3263.8,3261.8,0.00080523]
[1768780891262,0.96094905,3263.6,3261.8,0.00080523]
[1768780891474,0.05,3265.3,3263.0,0.86652905]
[1768780891618,0.05,3265.3,3263.7,0.0008036]
[1768780891619,0.0008032,3264.5,3263.7,0.0008036]
[1768780891942,0.0008032,3264.5,3261.4,3.634282]
[1768780891943,0.00080523,3263.5,3261.4,3.634282]
[1768780892144,0.00080523,3263.5,3261.4,4.907768]
[1768780892455,0.00080523,3263.5,3261.5,2.332577]
[1768780892658,0.00080523,3263.5,3261.7,2.207429]
[1768780892827,0.00080523,3263.5,3261.6,0.28182973]
[1768780893150,0.96175428,3263.5,3261.6,0.28182973]
[1768780893354,0.96175428,3263.5,3261.0,0.0008028]
[1768780893554,0.96094905,3263.3,3261.0,0.0008028]
[1768780893758,0.00080523,3263.5,3261.0,0.0008028]
[1768780893759,0.96094905,3263.1,3261.0,0.0008028]
[1768780894086,0.00080523,3263.5,3260.5,0.0008032]
[1768780894087,0.96094905,3262.4,3260.5,1.2e-06]
[1768780894536,0.96094905,3262.4,3259.8,0.0008024]
[1768780894537,0.96094905,3261.8,3259.8,1.6e-06]
[1768780894966,0.0008028,3261.9,3259.8,1.6e-06]
[1768780894967,0.96094905,3261.6,3259.8,1.6e-06]
[1768780895166,0.0008028,3261.9,3259.8,1.6e-06]
[1768780895167,0.96094905,3261.4,3259.8,1.6e-06]
[1768780895333,0.96094905,3261.0,3258.6,0.1238012]
[1768780895525,0.128,3261.1,3258.6,0.1238012]
[1768780895526,0.96174945,3260.4,3258.6,0.1238012]
[1768780896667,6.1344048,3260.3,3258.6,0.1238012]
[1768780896971,0.96094905,3260.2,3258.6,0.1238012]
[1768780897329,0.96094905,3260.2,3257.9,0.000802]
[1768780897532,0.96094905,3260.0,3257.9,0.000802]
[1768780898041,0.96174945,3260.0,3257.9,0.000802]
[1768780898526,7.06199585,3259.9,3257.9,0.000802]
[1768780898726,0.92683833,3259.8,3257.9,0.000802]
[1768780898963,0.92683833,3259.6,3257.9,0.000802]
[1768780899175,0.92683833,3259.6,3257.3,0.0008016]
[1768780899176,1.01295746,3259.7,3257.3,0.0008012]
[1768780899177,0.92683833,3259.4,3257.3,0.0008012]
[1768780899462,0.92763993,3259.3,3257.3,0.0008012]
[1768780900057,0.92763993,3259.3,3256.8,2.89065199]
[1768780900058,0.92683833,3258.9,3256.8,2.89065199]
[1768780900338,0.128,3259.0,3256.8,2.88985079]
[1768780900339,0.92683833,3258.5,3256.8,2.88985079]
[1768780900677,3.06889673,3258.5,3256.9,3.35932081]
[1768780900874,0.92683833,3258.5,3256.9,0.28898508]
[1768780901772,0.92683833,3258.5,3256.8,0.10754026]
[1768780902363,0.92683833,3258.5,3256.8,1e-08]
[1768780902567,15.34506771,3258.6,3255.8,0.0231011]
[1768780902568,10.13437623,3258.2,3255.9,3.07134537]
[1768780902756,0.92683833,3257.6,3256.0,0.30944465]
[1768780903067,0.92683833,3257.6,3255.8,0.0231011]
[1768780903429,0.0008,3257.7,3255.9,30.0]
[1768780903658,0.081097,3257.6,3255.8,6.16596474]
[1768780903873,0.0008,3257.7,3255.9,2.461]
[1768780904200,0.081097,3257.6,3255.9,4.4764]
[1768780904337,0.081097,3257.5,3256.0,0.7570923]
[1768780904656,0.0008,3257.7,3256.0,0.2570923]
[1768780904657,0.081097,3256.9,3256.0,0.2570923]
[1768780904862,0.081097,3256.6,3255.8,0.0231011]
[1768780905328,3.07043956,3256.9,3255.5,0.0008]
[1768780905329,0.081097,3256.0,3255.5,0.0008]
[1768780905470,0.92683833,3256.8,3255.0,2.8444029]
[1768780906079,9.21211868,3256.9,3255.0,2.8444029]
[1768780906080,1.08169127,3256.5,3255.0,2.8444029]
[1768780906470,1.08169127,3256.5,3254.6,0.0008008]
[1768780906674,0.92683833,3256.3,3253.1,30.0]
[1768780906983,0.92683833,3256.3,3252.5,3.68791231]
[1768780906984,0.0008008,3256.3,3254.3,0.0008012]
[1768780907157,0.92763913,3256.3,3254.3,0.0008012]
[1768780907660,0.0008008,3256.3,3254.4,5.846992]
[1768780907859,0.0008008,3256.3,3254.3,0.0008012]
[1768780908045,0.92763913,3256.3,3254.3,0.0008012]
[1768780908642,3.99799707,3256.1,3254.3,0.0008012]
[1768780908860,6.14231748,3256.1,3254.4,0.002]
[1768780909059,6.14231748,3256.1,3254.3,0.0008012]
[1768780909060,0.92683833,3256.0,3254.3,0.0008012]
[1768780909251,0.92683833,3256.0,3253.9,0.0008012]
[1768780909546,0.92763953,3256.0,3253.9,0.0008012]
[1768780909751,0.92763953,3256.0,3253.6,0.0008012]
[1768780909752,0.92683833,3255.6,3253.6,0.0008012]
[1768780909965,0.92763953,3255.6,3253.6,0.0008012]
[1768780910907,0.92683833,3255.3,3253.6,0.0008012]
[1768780911060,0.92383833,3255.3,3253.7,4.60209]
[1768780911269,0.92383833,3255.3,3253.6,0.0008012]
[1768780911457,0.92383833,3255.3,3253.7,3.07336434]
[1768780911458,0.87383833,3255.3,3253.7,3.07336434]
[1768780911802,0.87383833,3255.3,3253.8,0.30741655]
[1768780911953,0.92683833,3255.1,3253.6,0.0008012]
[1768780912295,0.92683833,3255.1,3253.3,0.0008004]
[1768780912594,0.15485294,3255.2,3252.4,0.0008]
[1768780912595,0.98982472,3254.6,3252.4,0.0008]
[1768780912774,0.0008,3254.7,3252.5,0.30052766]
[1768780912775,0.98982472,3254.4,3252.5,0.30052766]
[1768780912974,6.14533722,3254.5,3251.4,0.0008]
[1768780913200,0.0008,3254.1,3251.6,3.22812025]
[1768780913498,0.0008,3254.1,3251.6,0.15275077]
[1768780913669,0.0008,3254.1,3252.4,0.94232552]
[1768780913868,0.0008,3254.1,3251.6,0.15275077]
[1768780913869,0.98982472,3253.9,3249.5,1.21574295]
[1768780914058,0.98982472,3253.9,3249.2,0.0231011]
[1768780914059,0.98982472,3253.9,3247.2,4.43511]
[1768780914061,0.0455249,3249.7,3247.2,4.43511]
[1768780914257,0.05849213,3250.9,3247.1,3.07966797]
[1768780914258,0.10849213,3250.8,3247.7,0.94232552]
[1768780914469,0.05849213,3248.6,3248.3,3.69973452]
[1768780914719,0.05849213,3248.6,3247.0,9.23929779]
[1768780914720,9.22906539,3250.6,3247.6,3.07919694]
[1768780914996,9.22906539,3250.6,3246.5,3.08023456]
[1768780914997,0.128,3250.2,3246.9,3.07985983]
[1768780915156,0.98982472,3249.9,3246.4,3.08024757]
[1768780915352,0.128,3250.3,3245.9,2.209045]
[1768780915353,0.98982472,3249.7,3245.9,2.209045]